fUST/lending_fUST_20240918
["ID","MTS","AMOUNT","RATE_DAILY","PERIOD"]
[338467956,1726668641454,-500.0,0.00019178,2]
[338467957,1726668641464,-500.0,0.00019178,2]
[338467958,1726668641473,-500.0,0.00019178,2]
[338467959,1726668641482,-1127.57,0.00019178,2]
[338467960,1726668641492,-500.0,0.00019178,2]
[338467961,1726668641501,-500.0,0.00019178,2]
[338467962,1726668641510,-500.0,0.00019178,2]
[338467963,1726668641520,-500.0,0.00019178,2]
[338467964,1726668641529,-151.0,0.00019178,2]
[338467965,1726668641538,-151.0,0.00019178,2]
[338467966,1726668641547,-299.137519,0.00019178,2]
[338467967,1726668641557,-500.0,0.00019178,2]
[338467968,1726668641566,-500.0,0.00019178,2]
[338467969,1726668641575,-500.0,0.00019178,2]
[338467970,1726668641597,-500.0,0.00019178,2]
[338467971,1726668641610,-151.0,0.00019178,2]
[338467972,1726668641621,-151.0,0.00019178,2]
[338467973,1726668641631,-500.0,0.00019178,2]
[338467974,1726668641641,-500.0,0.00019178,2]
[338467975,1726668641654,-294.484643,0.00019178,2]
[338467976,1726668641664,-277.20909129,0.00019178,2]
[338467977,1726668641678,-500.0,0.00019178,2]
[338467978,1726668641688,-500.0,0.00019178,2]
[338467979,1726668641699,-621.18,0.00019178,2]
[338467980,1726668641710,-1390.71,0.00019178,2]
[338467981,1726668641719,-500.0,0.00019178,2]
[338467982,1726668641729,-2123.17,0.00019178,2]
[338467983,1726668641739,-219.85106024,0.00019178,2]
[338467984,1726668641749,-1029.93,0.00019178,2]
[338467985,1726668641759,-151.0,0.00019178,2]
[338467986,1726668641770,-152.115204,0.00019178,2]
[338467987,1726668641780,-500.0,0.00019178,2]
[338467988,1726668641790,-500.0,0.00019178,2]
[338467989,1726668641801,-500.0,0.00019178,2]
[338467990,1726668641811,-500.0,0.00019178,2]
[338467991,1726668641821,-500.0,0.00019178,2]
[338467992,1726668641839,-500.0,0.00019178,2]
[338467993,1726668641849,-500.0,0.00019178,2]
[338467994,1726668641859,-1830.33,0.00019178,2]
[338467995,1726668641869,-500.0,0.00019178,2]
[338467996,1726668641880,-500.0,0.00019178,2]
[338467997,1726668641890,-500.0,0.00019178,2]
[338467998,1726668641901,-683.38,0.00019178,2]
[338467999,1726668641914,-500.0,0.00019178,2]
[338468000,1726668641925,-639.75,0.00019178,2]
[338468001,1726668641935,-500.0,0.00019178,2]
[338468002,1726668641946,-500.0,0.00019178,2]
[338468003,1726668641955,-500.0,0.00019178,2]
[338468004,1726668641965,-500.0,0.00019178,2]
[338468005,1726668641975,-500.0,0.00019178,2]
[338468006,1726668641986,-500.0,0.00019178,2]
[338468007,1726668641997,-1082.32,0.00019178,2]
[338468008,1726668642008,-1696.49,0.00019178,2]
[338468009,1726668642020,-643.35,0.00019178,2]
[338468010,1726668642031,-530.64,0.00019178,2]
[338468011,1726668642040,-1798.18,0.00019178,2]
[338468012,1726668642051,-500.0,0.00019178,2]
[338468013,1726668642060,-1365.32,0.00019178,2]
[338468014,1726668642069,-500.0,0.00019178,2]
[338468015,1726668642080,-500.0,0.00019178,2]
[338468016,1726668642089,-500.0,0.00019178,2]
[338468017,1726668642098,-500.0,0.00019178,2]
[338468018,1726668642107,-500.0,0.00019178,2]
[338468019,1726668642116,-500.0,0.00019178,2]
[338468020,1726668642125,-500.0,0.00019178,2]
[338468021,1726668642136,-500.0,0.00019178,2]
[338468022,1726668642147,-725.29,0.00019178,2]
[338468023,1726668642156,-500.0,0.00019178,2]
[338468024,1726668642166,-151.0,0.00019178,2]
[338468025,1726668642176,-151.0,0.00019178,2]
[338468026,1726668642187,-151.0,0.00019178,2]
[338468027,1726668642198,-500.0,0.00019178,2]
[338468028,1726668642208,-873.07,0.00019178,2]
[338468029,1726668642219,-777.28,0.00019178,2]
[338468030,1726668642228,-500.0,0.00019178,2]
[338468031,1726668642239,-546.67,0.00019178,2]
[338468032,1726668642251,-151.0,0.00019178,2]
[338468033,1726668642261,-241.362484,0.00019178,2]
[338468034,1726668642272,-500.0,0.00019178,2]
[338468035,1726668642283,-500.0,0.00019178,2]
[338468036,1726668642293,-500.0,0.00019178,2]
[338468037,1726668642303,-500.0,0.00019178,2]
[338468038,1726668642313,-1812.12,0.00019178,2]
[338468039,1726668642325,-500.0,0.00019178,2]
[338468040,1726668642334,-500.0,0.00019178,2]
[338468041,1726668642344,-943.97,0.00019178,2]
[338468042,1726668642355,-506.47369279,0.00019178,2]
[338468043,1726668642365,-500.0,0.00019178,2]
[338468044,1726668642375,-504.38277641,0.00019178,2]
[338468045,1726668642388,-500.0,0.00019178,2]
[338468046,1726668642401,-500.0,0.00019178,2]
[338468047,1726668642411,-500.0,0.00019178,2]
[338468048,1726668642421,-1171.28,0.00019178,2]
[338468049,1726668642430,-500.0,0.00019178,2]
[338468050,1726668642440,-500.0,0.00019178,2]
[338468051,1726668642450,-500.0,0.00019178,2]
[338468052,1726668642460,-701.16,0.00019178,2]
[338468053,1726668642470,-500.0,0.00019178,2]
[338468054,1726668642482,-500.0,0.00019178,2]
[338468055,1726668642491,-500.0,0.00019178,2]
[338468056,1726668642503,-500.0,0.00019178,2]
[338468057,1726668642513,-500.0,0.00019178,2]
[338468058,1726668642524,-500.0,0.00019178,2]
[338468059,1726668642533,-500.0,0.00019178,2]
[338468060,1726668642544,-500.0,0.00019178,2]
[338468061,1726668642555,-500.0,0.00019178,2]
[338468062,1726668642565,-995.01,0.00019178,2]
[338468063,1726668642574,-910.77,0.00019178,2]
[338468064,1726668642585,-500.0,0.00019178,2]
[338468065,1726668642594,-1610.3,0.00019178,2]
[338468066,1726668642608,-1323.16,0.00019178,2]
[338468067,1726668642617,-500.0,0.00019178,2]
[338468068,1726668642629,-500.0,0.00019178,2]
[338468069,1726668642640,-690.37,0.00019178,2]
[338468070,1726668642651,-1166.91,0.00019178,2]
[338468071,1726668642663,-500.0,0.00019178,2]
[338468072,1726668642673,-500.0,0.00019178,2]
[338468073,1726668642689,-500.0,0.00019178,2]
[338468074,1726668642699,-500.0,0.00019178,2]
[338468075,1726668642708,-500.0,0.00019178,2]
[338468076,1726668642718,-548.24,0.00019178,2]
[338468077,1726668642727,-611.78,0.00019178,2]
[338468078,1726668642737,-679.13,0.00019178,2]
[338468079,1726668642746,-500.0,0.00019178,2]
[338468080,1726668642758,-2181.79,0.00019178,2]
[338468081,1726668642767,-193.265891,0.00019178,2]
[338468082,1726668642776,-500.0,0.00019178,2]
[338468083,1726668642786,-500.0,0.00019178,2]
[338468084,1726668642796,-163.5912942,0.00019178,2]
[338468085,1726668642805,-193.265891,0.00019178,2]
[338468086,1726668642815,-500.0,0.00019178,2]
[338468087,1726668642824,-500.0,0.00019178,2]
[338468088,1726668642834,-500.0,0.00019178,2]
[338468089,1726668642843,-500.0,0.00019178,2]
[338468090,1726668642853,-500.0,0.00019178,2]
[338468091,1726668642862,-595.55,0.00019178,2]
[338468092,1726668642872,-336.1569069,0.00019178,2]
[338468093,1726668642881,-500.0,0.00019178,2]
[338468094,1726668642890,-500.0,0.00019178,2]
[338468095,1726668642900,-500.0,0.00019178,2]
[338468096,1726668642910,-309.26441141,0.00019178,2]
[338468097,1726668642919,-500.0,0.00019178,2]
[338468098,1726668642929,-500.0,0.00019178,2]
[338468099,1726668642938,-151.0,0.00019178,2]
[338468100,1726668642947,-151.0,0.00019178,2]
[338468101,1726668642957,-151.0,0.00019178,2]
[338468102,1726668642966,-151.0,0.00019178,2]
[338468103,1726668642975,-500.0,0.00019178,2]
[338468104,1726668642984,-502.21,0.00019178,2]
[338468105,1726668642994,-500.0,0.00019178,2]
[338468106,1726668643003,-505.57,0.00019178,2]
[338468107,1726668643012,-500.0,0.00019178,2]
[338468108,1726668643021,-151.0,0.00019178,2]
[338468109,1726668643031,-1037.38,0.00019178,2]
[338468110,1726668643040,-1168.28,0.00019178,2]
[338468111,1726668643050,-500.0,0.00019178,2]
[338468112,1726668643059,-500.0,0.00019178,2]
[338468113,1726668643069,-398.38322423,0.00019178,2]
[338468114,1726668643079,-779.57,0.00019178,2]
[338468115,1726668643088,-170.277715,0.00019178,2]
[338468116,1726668643097,-170.277715,0.00019178,2]
[338468117,1726668643106,-170.277715,0.00019178,2]
[338468118,1726668643115,-170.277715,0.00019178,2]
[338468119,1726668643125,-500.0,0.00019178,2]
[338468120,1726668643134,-500.0,0.00019178,2]
[338468121,1726668643143,-170.277715,0.00019178,2]
[338468122,1726668643152,-170.277715,0.00019178,2]
[338468123,1726668643161,-170.277715,0.00019178,2]
[338468124,1726668643171,-170.277715,0.00019178,2]
[338468125,1726668643180,-500.0,0.00019178,2]
[338468126,1726668643189,-500.0,0.00019178,2]
[338468127,1726668643199,-542.31879306,0.00019178,2]
[338468128,1726668643208,-500.0,0.00019178,2]
[338468129,1726668643218,-500.0,0.00019178,2]
[338468130,1726668643227,-151.0,0.00019178,2]
[338468131,1726668643237,-151.0,0.00019178,2]
[338468133,1726668643247,-151.0,0.00019178,2]
[338468135,1726668643257,-151.0,0.00019178,2]
[338468136,1726668643266,-500.0,0.00019178,2]
[338468137,1726668643275,-223.49469264,0.00019178,2]
[338468138,1726668643284,-685.43,0.00019178,2]
[338468140,1726668643294,-503.59,0.00019178,2]
[338468141,1726668643303,-708.89,0.00019178,2]
[338468143,1726668643313,-500.0,0.00019178,2]
[338468145,1726668643322,-500.0,0.00019178,2]
[338468147,1726668643332,-501.46,0.00019178,2]
[338468149,1726668643341,-151.0,0.00019178,2]
[338468152,1726668643350,-299.314941,0.00019178,2]
[338468155,1726668643361,-379.29274194,0.00019178,2]
[338468156,1726668643370,-609.14,0.00019178,2]
[338468158,1726668643380,-500.0,0.00019178,2]
[338468160,1726668643389,-151.0,0.00019178,2]
[338468162,1726668643398,-151.0,0.00019178,2]
[338468164,1726668643408,-500.0,0.00019178,2]
[338468166,1726668643418,-980.96,0.00019178,2]
[338468167,1726668643427,-500.0,0.00019178,2]
[338468169,1726668643437,-1523.73,0.00019178,2]
[338468170,1726668643447,-525.92,0.00019178,2]
[338468172,1726668643456,-935.26,0.00019178,2]
[338468173,1726668643465,-2134.65,0.00019178,2]
[338468175,1726668643475,-500.0,0.00019178,2]
[338468177,1726668643485,-532.59370573,0.00019178,2]
[338468178,1726668643495,-2096.31,0.00019178,2]
[338468179,1726668643506,-500.0,0.00019178,2]
[338468180,1726668643515,-500.0,0.00019178,2]
[338468187,1726668643706,-500.0,0.00019178,2]
[338468188,1726668643716,-500.0,0.00019178,2]
[338468189,1726668643725,-641.72110543,0.00019178,2]
[338468190,1726668643735,-788.27,0.00019178,2]
[338468191,1726668643744,-513.79137478,0.00019178,2]
[338468192,1726668643754,-442.27621167,0.00019178,2]
[338468193,1726668643763,-1927.47,0.00019178,2]
[338468194,1726668643773,-500.0,0.00019178,2]
[338468196,1726668643782,-500.0,0.00019178,2]
[338468198,1726668643792,-500.0,0.00019178,2]
[338468200,1726668643800,-107.48731931,0.00019178,2]
[338468202,1726668643836,-806.46268069,0.00019178,2]
[338468203,1726668643846,-1165.80492077,0.00019178,2]
[338468204,1726668644485,-901.53507923,0.00019178,2]
[338468205,1726668644495,-500.0,0.00019178,2]
[338468206,1726668644504,-2768.29,0.00019178,2]
[338468207,1726668644513,-500.0,0.00019178,2]
[338468208,1726668644522,-500.0,0.00019178,2]
[338468209,1726668644532,-1943.8833058,0.00019178,2]
[338468210,1726668644548,-839.4366942,0.00019178,2]
[338468211,1726668644558,-259.52216569,0.00019178,2]
[338468284,1726668646768,-500.0,0.00019173,2]
[338468286,1726668646778,-241.86783431,0.00019178,2]
[338468289,1726668646789,-497.0,0.00019178,2]
[338468291,1726668646800,-500.0,0.00019178,2]
[338468294,1726668646810,-500.0,0.00019178,2]
[338468295,1726668646821,-500.0,0.00019178,2]
[338468296,1726668646833,-500.0,0.00019178,2]
[338468297,1726668646845,-500.0,0.00019178,2]
[338468298,1726668646855,-577.77,0.00019178,2]
[338468299,1726668646866,-500.0,0.00019178,2]
[338468300,1726668646878,-500.0,0.00019178,2]
[338468301,1726668646890,-500.0,0.00019178,2]
[338468302,1726668646900,-500.0,0.00019178,2]
[338468303,1726668646911,-188.451376,0.00019178,2]
[338468304,1726668646923,-188.451376,0.00019178,2]
[338468305,1726668646933,-188.451376,0.00019178,2]
[338468306,1726668646944,-820.14,0.00019178,2]
[338468307,1726668646955,-500.0,0.00019178,2]
[338468308,1726668646968,-188.451376,0.00019178,2]
[338468309,1726668646978,-1794.84,0.00019178,2]
[338468310,1726668646988,-500.0,0.00019178,2]
[338468311,1726668646999,-188.451376,0.00019178,2]
[338468312,1726668647011,-188.451376,0.00019178,2]
[338468313,1726668647022,-188.451376,0.00019178,2]
[338468314,1726668647033,-500.0,0.00019178,2]
[338468315,1726668647045,-188.451376,0.00019178,2]
[338468316,1726668647057,-1167.42,0.00019178,2]
[338468317,1726668647069,-500.0,0.00019178,2]
[338468318,1726668647080,-500.0,0.00019178,2]
[338468319,1726668647090,-500.0,0.00019178,2]
[338468320,1726668647099,-500.0,0.00019178,2]
[338468321,1726668647109,-500.0,0.00019178,2]
[338468322,1726668647119,-1000.0,0.00019178,2]
[338468323,1726668647133,-612.57,0.00019178,2]
[338468324,1726668647142,-500.0,0.00019178,2]
[338468325,1726668647152,-500.0,0.00019178,2]
[338468326,1726668647162,-1140.67,0.00019178,2]
[338468327,1726668647172,-1140.67,0.00019178,2]
[338468328,1726668647182,-1140.67,0.00019178,2]
[338468329,1726668647192,-1140.67,0.00019178,2]
[338468330,1726668647202,-1140.67,0.00019178,2]
[338468331,1726668647213,-500.0,0.00019178,2]
[338468332,1726668647223,-1140.67,0.00019178,2]
[338468333,1726668647233,-1140.67,0.00019178,2]
[338468334,1726668647243,-1140.67,0.00019178,2]
[338468335,1726668647254,-1140.67,0.00019178,2]
[338468336,1726668647264,-1140.67,0.00019178,2]
[338468337,1726668647273,-1140.67,0.00019178,2]
[338468338,1726668647284,-1140.67,0.00019178,2]
[338468339,1726668647294,-1140.67,0.00019178,2]
[338468340,1726668647303,-1140.67,0.00019178,2]
[338468341,1726668647313,-1140.67,0.00019178,2]
[338468342,1726668647323,-1140.67,0.00019178,2]
[338468343,1726668647333,-500.0,0.00019178,2]
[338468344,1726668647343,-1140.67,0.00019178,2]
[338468345,1726668647353,-1140.67,0.00019178,2]
[338468346,1726668647363,-1140.67,0.00019178,2]
[338468347,1726668647372,-1140.67,0.00019178,2]
[338468348,1726668647383,-1140.67,0.00019178,2]
[338468349,1726668647392,-1140.67,0.00019178,2]
[338468350,1726668647402,-1140.67,0.00019178,2]
[338468351,1726668647412,-500.0,0.00019178,2]
[338468352,1726668647422,-1140.78861078,0.00019178,2]
[338468353,1726668647433,-500.0,0.00019178,2]
[338468354,1726668647442,-500.0,0.00019178,2]
[338468355,1726668647452,-500.0,0.00019178,2]
[338468356,1726668647462,-500.0,0.00019178,2]
[338468357,1726668647471,-500.0,0.00019178,2]
[338468358,1726668647481,-500.0,0.00019178,2]
[338468359,1726668647491,-500.0,0.00019178,2]
[338468360,1726668647501,-460.883219,0.00019178,2]
[338468361,1726668647511,-500.0,0.00019178,2]
[338468362,1726668647520,-500.0,0.00019178,2]
[338468363,1726668647530,-500.0,0.00019178,2]
[338468364,1726668647540,-500.0,0.00019178,2]
[338468365,1726668647549,-695.79,0.00019178,2]
[338468366,1726668647559,-500.0,0.00019178,2]
[338468367,1726668647568,-759.36,0.00019178,2]
[338468368,1726668647578,-500.0,0.00019178,2]
[338468369,1726668647588,-500.0,0.00019178,2]
[338468370,1726668647598,-644.044905,0.00019178,2]
[338468371,1726668647615,-500.0,0.00019178,2]
[338468372,1726668647625,-520.25,0.00019178,2]
[338468373,1726668647634,-644.044905,0.00019178,2]
[338468374,1726668647646,-644.044905,0.00019178,2]
[338468375,1726668647655,-644.044905,0.00019178,2]
[338468376,1726668647665,-644.044905,0.00019178,2]
[338468377,1726668647675,-644.044905,0.00019178,2]
[338468378,1726668647686,-644.044905,0.00019178,2]
[338468379,1726668647695,-644.044905,0.00019178,2]
[338468380,1726668647704,-500.0,0.00019178,2]
[338468381,1726668647714,-298.30205,0.00019178,2]
[338468382,1726668647723,-298.30205,0.00019178,2]
[338468383,1726668647733,-298.30205,0.00019178,2]
[338468384,1726668647742,-298.30205,0.00019178,2]
[338468385,1726668647752,-500.0,0.00019178,2]
[338468386,1726668647762,-727.64,0.00019178,2]
[338468387,1726668647771,-500.0,0.00019178,2]
[338468388,1726668647781,-722.96,0.00019178,2]
[338468389,1726668647791,-151.0,0.00019178,2]
[338468390,1726668647800,-151.0,0.00019178,2]
[338468391,1726668647810,-500.0,0.00019178,2]
[338468392,1726668647819,-151.0,0.00019178,2]
[338468393,1726668647828,-500.0,0.00019178,2]
[338468394,1726668647848,-151.0,0.00019178,2]
[338468395,1726668647857,-500.0,0.00019178,2]
[338468396,1726668647866,-506.87,0.00019178,2]
[338468397,1726668647875,-500.0,0.00019178,2]
[338468398,1726668647885,-509.54784208,0.00019178,2]
[338468399,1726668647894,-500.0,0.00019178,2]
[338468400,1726668647904,-500.0,0.00019178,2]
[338468401,1726668647914,-500.0,0.00019178,2]
[338468402,1726668647924,-500.0,0.00019178,2]
[338468403,1726668647934,-500.0,0.00019178,2]
[338468404,1726668647947,-500.0,0.00019178,2]
[338468405,1726668647959,-500.0,0.00019178,2]
[338468406,1726668647969,-500.0,0.00019178,2]
[338468407,1726668647980,-500.0,0.00019178,2]
[338468408,1726668647991,-1449.75,0.00019178,2]
[338468409,1726668648003,-1894.1,0.00019178,2]
[338468410,1726668648014,-1894.1,0.00019178,2]
[338468411,1726668648023,-1811.81,0.00019178,2]
[338468412,1726668648041,-1894.1,0.00019178,2]
[338468413,1726668648053,-1894.1,0.00019178,2]
[338468414,1726668648063,-1894.1,0.00019178,2]
[338468415,1726668648074,-1894.1,0.00019178,2]
[338468416,1726668648086,-434.84051108,0.00019178,2]
[338468417,1726668648097,-1894.1,0.00019178,2]
[338468418,1726668648108,-1894.1,0.00019178,2]
[338468419,1726668648119,-1894.1,0.00019178,2]
[338468420,1726668648129,-665.19,0.00019178,2]
[338468421,1726668648139,-1894.1,0.00019178,2]
[338468422,1726668648150,-1894.1,0.00019178,2]
[338468423,1726668648160,-1894.1,0.00019178,2]
[338468424,1726668648170,-1894.1,0.00019178,2]
[338468425,1726668648180,-1894.1,0.00019178,2]
[338468426,1726668648190,-1894.1,0.00019178,2]
[338468427,1726668648200,-500.0,0.00019178,2]
[338468428,1726668648210,-1894.1,0.00019178,2]
[338468429,1726668648219,-1894.1,0.00019178,2]
[338468430,1726668648231,-1752.33,0.00019178,2]
[338468431,1726668648241,-500.0,0.00019178,2]
[338468432,1726668648252,-1894.1,0.00019178,2]
[338468433,1726668648261,-1894.1,0.00019178,2]
[338468434,1726668648519,-1894.1,0.00019178,2]
[338468435,1726668648531,-1894.1,0.00019178,2]
[338468436,1726668648541,-1894.1,0.00019178,2]
[338468437,1726668648551,-1894.1,0.00019178,2]
[338468438,1726668648561,-500.0,0.00019178,2]
[338468439,1726668648572,-1894.22030539,0.00019178,2]
[338468440,1726668648583,-500.0,0.00019178,2]
[338468441,1726668648593,-1794.08,0.00019178,2]
[338468442,1726668648609,-500.0,0.00019178,2]
[338468443,1726668648624,-732.75,0.00019178,2]
[338468444,1726668648634,-2575.33,0.00019178,2]
[338468445,1726668648644,-500.0,0.00019178,2]
[338468446,1726668648656,-500.0,0.00019178,2]
[338468447,1726668648669,-178.36590775,0.00019178,2]
[338468448,1726668648679,-1756.73,0.00019178,2]
[338468449,1726668648688,-500.0,0.00019178,2]
[338468450,1726668648698,-3224.36,0.00019178,2]
[338468451,1726668648707,-500.0,0.00019178,2]
[338468452,1726668648717,-500.0,0.00019178,2]
[338468453,1726668648726,-500.0,0.00019178,2]
[338468454,1726668648735,-500.0,0.00019178,2]
[338468455,1726668648745,-500.0,0.00019178,2]
[338468456,1726668648755,-500.50053108,0.00019178,2]
[338468457,1726668648765,-601.75,0.00019178,2]
[338468458,1726668648778,-500.0,0.00019178,2]
[338468459,1726668648789,-500.0,0.00019178,2]
[338468460,1726668648799,-500.0,0.00019178,2]
[338468461,1726668648809,-779.76,0.00019178,2]
[338468462,1726668648818,-500.0,0.00019178,2]
[338468463,1726668648828,-151.0,0.00019178,2]
[338468464,1726668648838,-500.0,0.00019178,2]
[338468465,1726668648847,-151.0,0.00019178,2]
[338468466,1726668648857,-933.8,0.00019178,2]
[338468467,1726668648867,-151.0,0.00019178,2]
[338468468,1726668648876,-500.0,0.00019178,2]
[338468469,1726668648886,-151.0,0.00019178,2]
[338468470,1726668648896,-500.0,0.00019178,2]
[338468471,1726668648906,-303.39703546,0.00019178,2]
[338468472,1726668648916,-500.0,0.00019178,2]
[338468473,1726668648926,-500.0,0.00019178,2]
[338468474,1726668648935,-151.0,0.00019178,2]
[338468475,1726668648945,-500.0,0.00019178,2]
[338468476,1726668648954,-966.121238,0.00019178,2]
[338468477,1726668648963,-500.0,0.00019178,2]
[338468478,1726668648973,-500.0,0.00019178,2]
[338468479,1726668648983,-151.0,0.00019178,2]
[338468480,1726668648995,-966.121238,0.00019178,2]
[338468481,1726668649005,-538.54,0.00019178,2]
[338468482,1726668649015,-151.0,0.00019178,2]
[338468483,1726668649025,-966.121238,0.00019178,2]
[338468484,1726668649034,-151.0,0.00019178,2]
[338468485,1726668649044,-966.121238,0.00019178,2]
[338468486,1726668649054,-500.0,0.00019178,2]
[338468487,1726668649065,-999.41,0.00019178,2]
[338468488,1726668649075,-503.59,0.00019178,2]
[338468489,1726668649086,-47.22387425,0.00019178,2]
[338468494,1726669721932,10551.87483603,0.00014,2]
[338468527,1726669831859,-190.0,0.00018048,2]
[338468528,1726669831873,-190.0,0.00018097,2]
[338468529,1726669831882,-190.0,0.00018147,2]
[338468531,1726669831892,-190.0,0.00018196,2]
[338468533,1726669831903,-190.0,0.00018246,2]
[338468534,1726669831912,-190.0,0.00018295,2]
[338468536,1726669831921,-190.0,0.00018345,2]
[338468538,1726669831931,-190.0,0.00018394,2]
[338468539,1726669831945,-190.0,0.00018444,2]
[338468541,1726669831955,-300.0,0.00018446,2]
[338468543,1726669831967,-300.0,0.00018446,2]
[338468544,1726669831977,-2122.92883178,0.00018447,2]
[338468545,1726669831989,-4580.1520175,0.00018447,2]
[338468566,1726669837917,-907.66704796,0.00017948,2]
[338468567,1726669837927,-1415.52472347,0.00018447,2]
[338468568,1726669837939,-190.0,0.00018493,2]
[338468569,1726669837949,-190.0,0.00018543,2]
[338468570,1726669837959,-190.0,0.00018592,2]
[338468571,1726669837970,-190.0,0.00018642,2]
[338468572,1726669837980,-190.0,0.00018691,2]
[338468573,1726669837991,-190.0,0.00018741,2]
[338468574,1726669838001,-153.0,0.00018755,2]
[338468575,1726669838011,-190.0,0.0001879,2]
[338468576,1726669838022,-190.0,0.0001884,2]
[338468577,1726669838031,-153.0,0.00018871,2]
[338468578,1726669838041,-153.0,0.00018871,2]
[338468579,1726669838052,-153.0,0.00018871,2]
[338468580,1726669838061,-153.0,0.00018871,2]
[338468581,1726669838076,-153.0,0.00018871,2]
[338468582,1726669838087,-190.0,0.00018889,2]
[338468583,1726669838097,-1254.08700921,0.000189,2]
[338468584,1726669838109,-208.6901718,0.00018901,2]
[338468585,1726669838118,-2705.41380132,0.00018904,2]
[338468586,1726669838129,-190.0,0.00018939,2]
[338468587,1726669838139,-153.0,0.00018952,2]
[338468588,1726669838149,-190.0,0.00018988,2]
[338468589,1726669838159,-38022.0,0.00019,2]
[338468590,1726669838171,-848.77109088,0.00019,2]
[338468591,1726669838181,-1000.0,0.00019058,2]
[338468592,1726669838192,-75281.1828722,0.00019137,3]
[338468593,1726669838408,-14424.07867336,0.00019138,3]
[338468594,1726669838443,-2079.35,0.00019138,3]
[338468600,1726669839869,-75316.9266935,0.00019138,3]
[338468607,1726669842907,-1168.02358464,0.00019138,3]
[338468691,1726671032046,-1592.13531529,0.00018,2]
[338468708,1726671032250,-1407.86468471,0.00018,2]
[338468709,1726671032260,-4722.76565359,0.00018262,2]
[338468716,1726671038056,-1495.83054361,0.00018262,2]
[338468717,1726671038066,-1097.32613305,0.000189,2]
[338468718,1726671038076,-300.0,0.00018998,2]
[338468719,1726671038085,-300.0,0.00018998,2]
[338468720,1726671038095,-500.0,0.00018999,2]
[338468721,1726671038104,-500.0,0.00018999,2]
[338468722,1726671038114,-500.0,0.00018999,2]
[338468724,1726671038124,-210.38377955,0.00018999,2]
[338468726,1726671038133,-43947.28182536,0.00019,2]
[338468727,1726671038142,-3000.0,0.00019,2]
[338468728,1726671038151,-1000.0,0.00019028,2]
[338468729,1726671038161,-459.93,0.00019088,3]
[338468730,1726671038170,-629.93230828,0.00019097,2]
[338468731,1726671038180,-500.0,0.00019097,2]
[338468732,1726671038189,-231.36348862,0.00019097,2]
[338468733,1726671038199,-500.0,0.00019097,2]
[338468734,1726671038209,-187.96273708,0.00019097,2]
[338468735,1726671038219,-500.0,0.00019097,2]
[338468736,1726671038228,-500.0,0.00019097,2]
[338468737,1726671038238,-500.0,0.00019097,2]
[338468738,1726671038247,-362.79839114,0.00019097,2]
[338468739,1726671038257,-500.0,0.00019097,2]
[338468740,1726671038266,-500.0,0.00019097,2]
[338468741,1726671038279,-500.0,0.00019097,2]
[338468742,1726671038292,-5000.75489539,0.00019098,5]
[338468743,1726671038309,-284635.79657862,0.00019098,3]